[Event "Open Gent 2023 Unrated"]
[Site "Gent, Belgium"]
[Date "2023.07.18"]
[Round "7.1"]
[White "Froeyman, Helmut"]
[Black "Vandelacluze, Ian"]
[Result "1/2-1/2"]
[TimeControl "90'+30''"]
[WhiteTitle "FM"]
[WhiteElo "2308"]
[BlackElo "2170"]

1. e4 {[%clk 01:30:57]} {[%emt 00:00:02]} e6 {[%clk 01:30:49]} {[%emt
00:00:11]} 2. d4 {[%clk 01:31:20]} {[%emt 00:00:07]} d5 {[%clk 01:31:13]}
{[%emt 00:00:06]} 3. Nc3 {[%clk 01:31:45]} {[%emt 00:00:05]} Bb4 {[%clk
01:31:35]} {[%emt 00:00:08]} 4. e5 {[%clk 01:31:54]} {[%emt 00:00:21]} c5
{[%clk 01:31:55]} {[%emt 00:00:09]} 5. a3 {[%clk 01:32:13]} {[%emt 00:00:13]}
Bxc3+ {[%clk 01:32:17]} {[%emt 00:00:08]} 6. bxc3 {[%clk 01:32:35]} {[%emt
00:00:06]} Qa5 {[%clk 01:32:38]} {[%emt 00:00:09]} 7. Bd2 {[%clk 01:32:19]}
{[%emt 00:00:46]} Qa4 {[%clk 01:32:41]} {[%emt 00:00:28]} 8. Qb1 {[%clk
01:31:53]} {[%emt 00:00:56]} c4 {[%clk 01:33:03]} {[%emt 00:00:08]} 9. Ne2
{[%clk 01:30:51]} {[%emt 00:01:32]} Nc6 {[%clk 01:32:54]} {[%emt 00:00:39]} 10.
g3 {[%clk 01:30:22]} {[%emt 00:00:59]} Bd7 {[%clk 01:32:34]} {[%emt 00:00:49]}
11. Bg2 {[%clk 01:27:44]} {[%emt 00:03:09]} O-O-O {[%clk 01:32:35]} {[%emt
00:00:29]} 12. O-O {[%clk 01:27:02]} {[%emt 00:01:12]} b6 {[%clk 01:32:09]}
{[%emt 00:00:56]} 13. Qb2 {[%clk 01:18:25]} {[%emt 00:09:08]} h6 {[%clk
01:28:35]} {[%emt 00:04:03]} 14. h4 {[%clk 01:14:38]} {[%emt 00:04:17]} Nge7
{[%clk 01:26:49]} {[%emt 00:02:16]} 15. Bh3 {[%clk 01:05:07]} {[%emt 00:10:01]}
Rdf8 {[%clk 01:22:58]} {[%emt 00:04:21]} 16. Rae1 {[%clk 00:59:46]} {[%emt
00:05:51]} Rhg8 {[%clk 01:20:46]} {[%emt 00:02:42]} 17. h5 {[%clk 00:56:29]}
{[%emt 00:03:49]} Kb7 {[%clk 01:16:49]} {[%emt 00:04:27]} 18. Nf4 {[%clk
00:54:54]} {[%emt 00:02:04]} Nd8 {[%clk 01:14:34]} {[%emt 00:02:44]} 19. Kh2
{[%clk 00:49:41]} {[%emt 00:05:45]} f5 {[%clk 01:08:52]} {[%emt 00:06:12]} 20.
exf6 {[%clk 00:46:28]} {[%emt 00:03:43]} Rxf6 {[%clk 01:06:09]} {[%emt
00:03:11]} 21. Re2 {[%clk 00:41:57]} {[%emt 00:05:02]} a5 {[%clk 01:04:23]}
{[%emt 00:02:17]} 22. Ng2 {[%clk 00:37:10]} {[%emt 00:05:16]} Be8 {[%clk
01:00:46]} {[%emt 00:04:08]} 23. Nf4 {[%clk 00:36:23]} {[%emt 00:01:17]} Bd7
{[%clk 01:01:06]} {[%emt 00:00:10]} 24. Rfe1 {[%clk 00:33:29]} {[%emt
00:03:23]} Qc6 {[%clk 01:01:13]} {[%emt 00:00:22]} 25. Kg1 {[%clk 00:32:18]}
{[%emt 00:01:42]} Rgf8 {[%clk 00:57:51]} {[%emt 00:03:52]} 26. Qc1 {[%clk
00:31:38]} {[%emt 00:01:11]} Re8 {[%clk 00:48:46]} {[%emt 00:09:35]} 27. Ng2
{[%clk 00:30:15]} {[%emt 00:01:52]} Nf5 {[%clk 00:44:29]} {[%emt 00:04:48]} 28.
Bf4 {[%clk 00:29:03]} {[%emt 00:01:41]} Nf7 {[%clk 00:43:22]} {[%emt 00:01:37]}
29. Bxf5 {[%clk 00:16:19]} {[%emt 00:13:14]} Rxf5 {[%clk 00:42:41]} {[%emt
00:01:11]} 30. Ne3 {[%clk 00:12:09]} {[%emt 00:04:40]} 1/2-1/2

[Event "Open Gent 2023 Unrated"]
[Site "Gent, Belgium"]
[Date "2023.07.18"]
[Round "7.2"]
[White "Plomp, Micha"]
[Black "Goormachtigh, Johan"]
[Result "1/2-1/2"]
[TimeControl "90'+30''"]
[BlackTitle "FM"]
[WhiteElo "2130"]
[BlackElo "2183"]

1. e4 {[%clk 01:30:56]} {[%emt 00:00:03]} c5 {[%clk 01:30:42]} {[%emt
00:00:18]} 2. Nc3 {[%clk 01:31:12]} {[%emt 00:00:14]} Nc6 {[%clk 01:30:48]}
{[%emt 00:00:24]} 3. Bb5 {[%clk 01:31:23]} {[%emt 00:00:18]} Nd4 {[%clk
01:30:15]} {[%emt 00:01:03]} 4. Nf3 {[%clk 01:31:27]} {[%emt 00:00:27]} e6
{[%clk 01:29:57]} {[%emt 00:00:48]} 5. O-O {[%clk 01:30:51]} {[%emt 00:01:05]}
a6 {[%clk 01:29:35]} {[%emt 00:00:53]} 6. Bd3 {[%clk 01:30:37]} {[%emt
00:00:44]} Nc6 {[%clk 01:28:59]} {[%emt 00:01:06]} 7. Re1 {[%clk 01:28:06]}
{[%emt 00:03:01]} d6 {[%clk 01:25:19]} {[%emt 00:04:10]} 8. Bf1 {[%clk
01:27:14]} {[%emt 00:01:21]} Nf6 {[%clk 01:24:08]} {[%emt 00:01:42]} 9. d4
{[%clk 01:26:13]} {[%emt 00:01:30]} cxd4 {[%clk 01:24:30]} {[%emt 00:00:08]} 10.
Nxd4 {[%clk 01:26:35]} {[%emt 00:00:08]} Be7 {[%clk 01:20:59]} {[%emt
00:04:01]} 11. g3 {[%clk 01:23:54]} {[%emt 00:03:11]} O-O {[%clk 01:11:48]}
{[%emt 00:09:41]} 12. Bg2 {[%clk 01:23:15]} {[%emt 00:01:09]} Bd7 {[%clk
01:10:34]} {[%emt 00:01:45]} 13. b3 {[%clk 01:14:50]} {[%emt 00:08:55]} Qb6
{[%clk 01:04:20]} {[%emt 00:06:44]} 14. Nxc6 {[%clk 00:52:47]} {[%emt
00:22:33]} bxc6 {[%clk 00:59:37]} {[%emt 00:05:14]} 15. Na4 {[%clk 00:50:06]}
{[%emt 00:03:11]} Qc7 {[%clk 00:58:21]} {[%emt 00:01:46]} 16. c4 {[%clk
00:50:10]} {[%emt 00:00:26]} e5 {[%clk 00:56:46]} {[%emt 00:02:05]} 17. Ba3
{[%clk 00:42:05]} {[%emt 00:08:35]} c5 {[%clk 00:47:13]} {[%emt 00:10:04]} 18.
Nc3 {[%clk 00:42:02]} {[%emt 00:00:32]} Bc6 {[%clk 00:44:27]} {[%emt 00:03:16]}
19. Bc1 {[%clk 00:39:14]} {[%emt 00:03:17]} Rfe8 {[%clk 00:42:03]} {[%emt
00:02:54]} 20. Bg5 {[%clk 00:36:29]} {[%emt 00:03:15]} h6 {[%clk 00:41:46]}
{[%emt 00:00:47]} 21. Be3 {[%clk 00:34:27]} {[%emt 00:02:32]} Nh7 {[%clk
00:36:20]} {[%emt 00:05:56]} 22. Qd2 {[%clk 00:28:44]} {[%emt 00:06:13]} Ng5
{[%clk 00:30:16]} {[%emt 00:06:34]} 23. f4 {[%clk 00:20:23]} {[%emt 00:08:50]}
Bf8 {[%emt 00:01:31]} 1/2-1/2

[Event "Open Gent 2023 Unrated"]
[Site "Gent, Belgium"]
[Date "2023.07.18"]
[Round "7.4"]
[White "Torn, Bert"]
[Black "Kegels, Pascal"]
[Result "1-0"]
[TimeControl "90'+30''"]
[WhiteElo "2135"]
[BlackElo "2057"]

1. Nf3 {[%clk 01:30:57]} {[%emt 00:00:03]} Nf6 {[%clk 01:21:38]} {[%emt
00:09:23]} 2. c4 {[%clk 01:31:05]} {[%emt 00:00:22]} e6 {[%clk 01:21:15]}
{[%emt 00:00:53]} 3. Nc3 {[%clk 01:31:12]} {[%emt 00:00:21]} d5 {[%clk
01:21:39]} {[%emt 00:00:07]} 4. e3 {[%clk 01:31:32]} {[%emt 00:00:10]} Be7
{[%clk 01:22:02]} {[%emt 00:00:07]} 5. b3 {[%clk 01:31:49]} {[%emt 00:00:13]}
O-O {[%clk 01:22:23]} {[%emt 00:00:09]} 6. Bb2 {[%clk 01:32:11]} {[%emt
00:00:08]} b6 {[%clk 01:17:13]} {[%emt 00:05:41]} 7. cxd5 {[%clk 01:28:23]}
{[%emt 00:04:17]} exd5 {[%clk 01:14:43]} {[%emt 00:03:01]} 8. Qc2 {[%clk
01:25:37]} {[%emt 00:03:15]} c5 {[%clk 01:14:05]} {[%emt 00:01:08]} 9. Ne2
{[%clk 01:13:47]} {[%emt 00:12:20]} Nc6 {[%clk 01:14:10]} {[%emt 00:00:27]} 10.
Ng3 {[%clk 01:13:30]} {[%emt 00:00:46]} Nb4 {[%clk 01:06:53]} {[%emt 00:07:47]}
11. Qb1 {[%clk 01:11:46]} {[%emt 00:02:13]} d4 {[%clk 01:05:23]} {[%emt
00:02:00]} 12. a3 {[%clk 01:06:16]} {[%emt 00:06:01]} Nbd5 {[%clk 01:05:38]}
{[%emt 00:00:15]} 13. Be2 {[%clk 01:04:36]} {[%emt 00:02:10]} dxe3 {[%clk
01:00:46]} {[%emt 00:05:22]} 14. dxe3 {[%clk 01:04:43]} {[%emt 00:00:22]} a5
{[%clk 01:00:04]} {[%emt 00:01:13]} 15. a4 {[%clk 01:02:56]} {[%emt 00:02:17]}
Qc7 {[%clk 00:53:21]} {[%emt 00:07:13]} 16. O-O {[%clk 01:02:31]} {[%emt
00:00:54]} Bg4 {[%clk 00:51:33]} {[%emt 00:02:18]} 17. h3 {[%clk 00:59:20]}
{[%emt 00:03:40]} Bxf3 {[%clk 00:51:45]} {[%emt 00:00:19]} 18. Bxf3 {[%clk
00:59:47]} {[%emt 00:00:03]} Rad8 {[%clk 00:51:45]} {[%emt 00:00:30]} 19. Nf5
{[%clk 00:56:22]} {[%emt 00:03:56]} Rfe8 {[%clk 00:46:00]} {[%emt 00:06:15]} 20.
Nxe7+ {[%clk 00:54:10]} {[%emt 00:02:42]} Qxe7 {[%clk 00:45:58]} {[%emt
00:00:32]} 21. Qf5 {[%clk 00:48:54]} {[%emt 00:05:45]} Qe6 {[%clk 00:42:09]}
{[%emt 00:04:19]} 22. Qxe6 {[%clk 00:46:02]} {[%emt 00:03:21]} Rxe6 {[%clk
00:41:50]} {[%emt 00:00:50]} 23. Rfd1 {[%clk 00:45:46]} {[%emt 00:00:45]} Ree8
{[%clk 00:41:27]} {[%emt 00:00:55]} 24. Rd2 {[%clk 00:44:38]} {[%emt 00:01:37]}
Nb4 {[%clk 00:38:15]} {[%emt 00:03:42]} 25. Rad1 {[%clk 00:45:05]} {[%emt
00:00:03]} Rc8 {[%clk 00:36:07]} {[%emt 00:02:38]} 26. Rd6 {[%clk 00:43:42]}
{[%emt 00:01:52]} c4 {[%clk 00:35:25]} {[%emt 00:01:14]} 27. bxc4 {[%clk
00:43:51]} {[%emt 00:00:21]} Rxc4 {[%clk 00:35:46]} {[%emt 00:00:08]} 28. Rxb6
{[%clk 00:43:16]} {[%emt 00:01:05]} Rc2 {[%clk 00:35:51]} {[%emt 00:00:24]} 29.
Bxf6 {[%clk 00:40:53]} {[%emt 00:02:54]} gxf6 {[%clk 00:36:19]} {[%emt
00:00:02]} 30. Rb5 {[%clk 00:41:05]} {[%emt 00:00:17]} 1-0

[Event "Open Gent 2023 Unrated"]
[Site "Gent, Belgium"]
[Date "2023.07.18"]
[Round "8.2"]
[White "Vandelacluze, Ian"]
[Black "Torn, Bert"]
[Result "1/2-1/2"]
[TimeControl "90'+30''"]
[WhiteElo "2170"]
[BlackElo "2135"]

1. d4 {[%clk 01:30:30]} {[%emt 00:37:20]} d6 {[%clk 01:28:43]} {[%emt
00:03:05]} 2. Nf3 {[%clk 01:30:18]} {[%emt 00:01:10]} g6 {[%clk 01:29:04]}
{[%emt 00:00:09]} 3. g3 {[%clk 01:30:12]} {[%emt 00:00:36]} Bg7 {[%clk
01:29:27]} {[%emt 00:00:07]} 4. Bg2 {[%clk 01:29:24]} {[%emt 00:01:17]} Nf6
{[%clk 01:29:53]} {[%emt 00:00:05]} 5. c4 {[%clk 01:28:21]} {[%emt 00:01:33]}
O-O {[%clk 01:30:11]} {[%emt 00:00:12]} 6. O-O {[%clk 01:28:28]} {[%emt
00:00:23]} c6 {[%clk 01:30:34]} {[%emt 00:00:08]} 7. Nc3 {[%clk 01:26:53]}
{[%emt 00:02:05]} Bf5 {[%clk 01:30:37]} {[%emt 00:00:27]} 8. b3 {[%clk
01:23:53]} {[%emt 00:03:30]} Ne4 {[%clk 01:30:27]} {[%emt 00:00:39]} 9. Bb2
{[%clk 01:23:08]} {[%emt 00:01:15]} Nxc3 {[%clk 01:27:32]} {[%emt 00:03:25]} 10.
Bxc3 {[%clk 01:23:27]} {[%emt 00:00:11]} Be4 {[%clk 01:27:52]} {[%emt
00:00:10]} 11. e3 {[%clk 01:13:41]} {[%emt 00:10:16]} e6 {[%clk 01:07:44]}
{[%emt 00:20:38]} 12. Bh3 {[%clk 01:12:16]} {[%emt 00:01:55]} c5 {[%clk
01:03:05]} {[%emt 00:05:09]} 13. Nd2 {[%clk 01:09:53]} {[%emt 00:02:53]} Bc6
{[%clk 01:02:44]} {[%emt 00:00:51]} 14. Qc2 {[%clk 01:09:29]} {[%emt 00:00:54]}
Qe7 {[%clk 00:56:17]} {[%emt 00:06:58]} 15. Rad1 {[%clk 01:06:09]} {[%emt
00:03:49]} Nd7 {[%clk 00:49:12]} {[%emt 00:07:36]} 16. dxc5 {[%clk 01:00:02]}
{[%emt 00:06:36]} 1/2-1/2

[Event "Open Gent 2023 Unrated"]
[Site "Gent, Belgium"]
[Date "2023.07.18"]
[Round "8.3"]
[White "Goormachtigh, Johan"]
[Black "Oorebeek, Erwin"]
[Result "1-0"]
[TimeControl "90'+30''"]
[WhiteTitle "FM"]
[WhiteElo "2183"]
[BlackElo "2199"]

1. d4 {[%clk 01:30:55]} {[%emt 00:00:04]} Nf6 {[%clk 01:30:46]} {[%emt
00:00:10]} 2. c4 {[%clk 01:30:21]} {[%emt 00:01:08]} c5 {[%clk 01:28:26]}
{[%emt 00:02:50]} 3. d5 {[%clk 01:30:34]} {[%emt 00:00:17]} b5 {[%clk
01:28:52]} {[%emt 00:00:04]} 4. cxb5 {[%clk 01:30:49]} {[%emt 00:00:15]} a6
{[%clk 01:29:18]} {[%emt 00:00:04]} 5. bxa6 {[%clk 01:31:03]} {[%emt 00:00:16]}
e6 {[%clk 01:28:28]} {[%emt 00:01:19]} 6. Nc3 {[%clk 01:30:03]} {[%emt
00:01:30]} exd5 {[%clk 01:28:40]} {[%emt 00:00:18]} 7. Nxd5 {[%clk 01:30:18]}
{[%emt 00:00:15]} Be7 {[%clk 01:28:58]} {[%emt 00:00:11]} 8. Nxe7 {[%clk
01:23:51]} {[%emt 00:06:57]} Qxe7 {[%clk 01:29:04]} {[%emt 00:00:24]} 9. Bf4
{[%clk 01:21:45]} {[%emt 00:02:36]} d5 {[%clk 01:26:23]} {[%emt 00:03:11]} 10.
e3 {[%clk 01:15:38]} {[%emt 00:06:38]} O-O {[%clk 01:24:35]} {[%emt 00:02:09]}
11. Nf3 {[%clk 01:11:34]} {[%emt 00:04:42]} Nbd7 {[%clk 01:19:23]} {[%emt
00:05:42]} 12. Be2 {[%clk 01:09:17]} {[%emt 00:02:47]} Bxa6 {[%clk 01:16:23]}
{[%emt 00:03:30]} 13. O-O {[%clk 01:07:59]} {[%emt 00:01:49]} h6 {[%clk
01:13:25]} {[%emt 00:03:28]} 14. Bxa6 {[%clk 00:50:31]} {[%emt 00:17:58]} Rxa6
{[%clk 01:13:44]} {[%emt 00:00:11]} 15. h3 {[%clk 00:50:55]} {[%emt 00:00:06]}
Rfa8 {[%clk 01:11:34]} {[%emt 00:02:40]} 16. a3 {[%clk 00:50:42]} {[%emt
00:00:44]} c4 {[%clk 01:10:17]} {[%emt 00:01:45]} 17. Rb1 {[%clk 00:49:08]}
{[%emt 00:02:04]} Rb6 {[%clk 01:04:32]} {[%emt 00:06:15]} 18. Qd4 {[%clk
00:41:22]} {[%emt 00:08:17]} Rb3 {[%clk 00:59:07]} {[%emt 00:05:55]} 19. Ne5
{[%clk 00:32:17]} {[%emt 00:09:35]} Nf8 {[%clk 00:54:25]} {[%emt 00:05:11]} 20.
Ng4 {[%clk 00:28:35]} {[%emt 00:04:12]} Rd3 {[%clk 00:38:35]} {[%emt 00:16:20]}
21. Nxf6+ {[%clk 00:27:48]} {[%emt 00:01:17]} gxf6 {[%clk 00:39:01]} {[%emt
00:00:04]} 22. Qb6 {[%clk 00:27:55]} {[%emt 00:00:22]} Kg7 {[%clk 00:38:08]}
{[%emt 00:01:22]} 23. Rfd1 {[%clk 00:25:52]} {[%emt 00:02:34]} Rxd1+ {[%clk
00:34:19]} {[%emt 00:04:20]} 24. Rxd1 {[%clk 00:26:21]} {[%emt 00:00:01]} Qe6
{[%clk 00:33:12]} {[%emt 00:01:37]} 25. Qb5 {[%clk 00:23:37]} {[%emt 00:03:13]}
Rd8 {[%clk 00:31:54]} {[%emt 00:01:48]} 26. Bc7 {[%clk 00:20:34]} {[%emt
00:03:34]} Rd7 {[%clk 00:31:42]} {[%emt 00:00:42]} 27. Ba5 {[%clk 00:20:56]}
{[%emt 00:00:07]} Ng6 {[%clk 00:30:45]} {[%emt 00:01:26]} 28. Bc3 {[%clk
00:20:48]} {[%emt 00:00:39]} Ne5 {[%clk 00:29:20]} {[%emt 00:01:55]} 29. Rd4
{[%clk 00:21:01]} {[%emt 00:00:17]} Kg6 {[%clk 00:19:33]} {[%emt 00:10:16]} 30.
Qb8 {[%clk 00:20:28]} {[%emt 00:01:03]} Kg7 {[%clk 00:18:31]} {[%emt 00:01:32]}
31. Rf4 {[%clk 00:14:41]} {[%emt 00:06:17]} Qd6 {[%clk 00:09:49]} {[%emt
00:09:12]} 32. Qa8 {[%clk 00:10:10]} {[%emt 00:05:02]} Qb6 {[%clk 00:05:06]}
{[%emt 00:05:14]} 33. Qc8 {[%clk 00:09:03]} {[%emt 00:01:35]} Qc7 {[%clk
00:04:04]} {[%emt 00:01:33]} 34. Qa6 {[%clk 00:08:21]} {[%emt 00:01:12]} Rd6
{[%clk 00:03:57]} {[%emt 00:00:37]} 35. Qa8 {[%clk 00:07:54]} {[%emt 00:00:57]}
Rd8 {[%clk 00:02:30]} {[%emt 00:01:57]} 36. Qa4 {[%clk 00:08:06]} {[%emt
00:00:18]} Rd6 {[%clk 00:01:55]} {[%emt 00:01:06]} 37. Qd1 {[%clk 00:07:50]}
{[%emt 00:00:46]} Ng6 {[%clk 00:01:28]} {[%emt 00:00:56]} 38. Rf5 {[%clk
00:07:12]} {[%emt 00:01:08]} Qd7 {[%clk 00:01:42]} {[%emt 00:00:17]} 39. Qg4
{[%clk 00:06:59]} {[%emt 00:00:42]} Kh7 {[%clk 00:00:38]} {[%emt 00:01:35]} 40.
Rxf6 {[%clk 00:06:10]} {[%emt 00:01:19]} Qxg4 {[%clk 00:00:42]} {[%emt
00:00:26]} 41. Rxf7+ {[%clk 00:04:26]} {[%emt 00:02:14]} Kg8 {[%clk 00:01:07]}
{[%emt 00:00:05]} 42. Rg7+ {[%clk 00:04:52]} {[%emt 00:00:03]} Kf8 {[%clk
00:01:00]} {[%emt 00:00:38]} 43. hxg4 {[%clk 00:05:21]} {[%emt 00:00:01]} d4
{[%clk 00:00:48]} {[%emt 00:00:42]} 44. Bxd4 {[%clk 00:05:10]} {[%emt
00:00:41]} Rxd4 {[%clk 00:00:57]} {[%emt 00:00:21]} 45. Rxg6 {[%emt 00:00:01]}
1-0

[Event "Open Gent 2023 Unrated"]
[Site "Gent, Belgium"]
[Date "2023.07.19"]
[Round "9.1"]
[White "Vandelacluze, Ian"]
[Black "Goormachtigh, Johan"]
[Result "1/2-1/2"]
[TimeControl "90'+30''"]
[BlackTitle "FM"]
[WhiteElo "2170"]
[BlackElo "2183"]

1. e4 {[%clk 01:30:53]} {[%emt 00:00:06]} c5 {[%clk 01:30:50]} {[%emt
00:00:11]} 2. c3 {[%clk 01:31:14]} {[%emt 00:00:09]} Nf6 {[%clk 01:31:01]}
{[%emt 00:00:19]} 3. e5 {[%clk 01:31:36]} {[%emt 00:00:07]} Nd5 {[%clk
01:31:26]} {[%emt 00:00:05]} 4. Bc4 {[%clk 01:31:58]} {[%emt 00:00:07]} e6
{[%clk 01:31:35]} {[%emt 00:00:22]} 5. d4 {[%clk 01:30:24]} {[%emt 00:02:04]}
cxd4 {[%clk 01:31:20]} {[%emt 00:00:45]} 6. Bxd5 {[%clk 01:30:46]} {[%emt
00:00:07]} exd5 {[%clk 01:31:42]} {[%emt 00:00:09]} 7. Qxd4 {[%clk 01:31:11]}
{[%emt 00:00:05]} Nc6 {[%clk 01:21:54]} {[%emt 00:10:18]} 8. Qxd5 {[%clk
01:31:04]} {[%emt 00:00:36]} d6 {[%clk 01:19:00]} {[%emt 00:03:25]} 9. exd6
{[%clk 01:31:27]} {[%emt 00:00:07]} Bxd6 {[%clk 01:19:26]} {[%emt 00:00:04]} 10.
Bg5 {[%clk 01:31:46]} {[%emt 00:00:10]} Qc7 {[%clk 01:05:09]} {[%emt 00:14:47]}
11. Nf3 {[%clk 01:30:46]} {[%emt 00:01:29]} Be6 {[%clk 01:04:11]} {[%emt
00:01:29]} 12. Qd1 {[%clk 01:25:36]} {[%emt 00:05:39]} O-O {[%clk 00:58:53]}
{[%emt 00:05:49]} 13. O-O {[%clk 01:25:23]} {[%emt 00:00:42]} Bg4 {[%clk
00:54:15]} {[%emt 00:05:09]} 14. h3 {[%clk 01:24:57]} {[%emt 00:00:55]} Bh5
{[%clk 00:54:20]} {[%emt 00:00:26]} 15. Nbd2 {[%clk 01:24:55]} {[%emt
00:00:33]} h6 {[%clk 00:54:27]} {[%emt 00:00:23]} 16. Be3 {[%clk 01:24:21]}
{[%emt 00:01:02]} Rad8 {[%clk 00:53:43]} {[%emt 00:01:15]} 17. Qa4 {[%clk
01:21:40]} {[%emt 00:03:11]} Rfe8 {[%clk 00:52:04]} {[%emt 00:02:10]} 18. Rfe1
{[%clk 01:21:36]} {[%emt 00:00:33]} b6 {[%clk 00:40:47]} {[%emt 00:11:48]} 19.
Qh4 {[%clk 01:19:37]} {[%emt 00:02:26]} Bg6 {[%clk 00:37:50]} {[%emt 00:03:29]}
20. Rad1 {[%clk 01:11:42]} {[%emt 00:08:25]} Bc2 {[%clk 00:37:41]} {[%emt
00:00:38]} 21. Rc1 {[%clk 01:11:50]} {[%emt 00:00:22]} Bg6 {[%clk 00:38:05]}
{[%emt 00:00:07]} 22. Rcd1 {[%clk 01:11:50]} {[%emt 00:00:30]} Bc2 {[%emt
00:00:39]} 23. Rc1 {[%emt 00:00:07]} Bg6 {[%clk 00:37:06]} {[%emt 00:00:45]} 24.
Rcd1 {[%clk 01:12:12]} {[%emt 00:00:07]} 1/2-1/2

[Event "Open Gent 2023 Unrated"]
[Site "Gent, Belgium"]
[Date "2023.07.19"]
[Round "9.4"]
[White "Plomp, Micha"]
[Black "Smaling, Eric"]
[Result "1-0"]
[TimeControl "90'+30''"]
[WhiteElo "2130"]
[BlackElo "1919"]

1. e4 {[%clk 01:31:23]} {[%emt 00:00:07]} c5 {[%clk 01:31:24]} {[%emt
00:00:07]} 2. Nc3 {[%clk 01:31:44]} {[%emt 00:00:08]} Nc6 {[%clk 01:31:38]}
{[%emt 00:00:15]} 3. Bb5 {[%clk 01:32:03]} {[%emt 00:00:11]} Nd4 {[%clk
01:30:22]} {[%emt 00:01:46]} 4. Nf3 {[%clk 01:32:21]} {[%emt 00:00:12]} g6
{[%clk 01:29:36]} {[%emt 00:01:16]} 5. O-O {[%clk 01:32:35]} {[%emt 00:00:16]}
Bg7 {[%clk 01:29:49]} {[%emt 00:00:17]} 6. Re1 {[%clk 01:32:48]} {[%emt
00:00:16]} e6 {[%clk 01:29:04]} {[%emt 00:01:16]} 7. Rb1 {[%clk 01:31:39]}
{[%emt 00:01:39]} Ne7 {[%clk 01:27:18]} {[%emt 00:02:15]} 8. b4 {[%clk
01:26:58]} {[%emt 00:05:12]} a6 {[%clk 01:13:29]} {[%emt 00:14:20]} 9. Bf1
{[%clk 01:27:03]} {[%emt 00:00:24]} cxb4 {[%clk 01:11:54]} {[%emt 00:02:06]} 10.
Nxd4 {[%clk 01:19:05]} {[%emt 00:08:28]} Bxd4 {[%clk 01:10:48]} {[%emt
00:01:35]} 11. Rxb4 {[%clk 01:14:33]} {[%emt 00:05:03]} Nc6 {[%clk 01:09:34]}
{[%emt 00:01:44]} 12. Rxd4 {[%clk 01:09:25]} {[%emt 00:05:38]} Nxd4 {[%clk
01:09:54]} {[%emt 00:00:10]} 13. e5 {[%clk 01:08:26]} {[%emt 00:01:29]} O-O
{[%clk 00:58:25]} {[%emt 00:11:59]} 14. Ba3 {[%clk 01:00:03]} {[%emt 00:08:52]}
Nb5 {[%clk 00:56:09]} {[%emt 00:02:46]} 15. Bxb5 {[%clk 00:59:49]} {[%emt
00:00:44]} axb5 {[%clk 00:56:23]} {[%emt 00:00:16]} 16. Bxf8 {[%clk 00:59:46]}
{[%emt 00:00:33]} Qxf8 {[%clk 00:56:30]} {[%emt 00:00:22]} 17. Qb1 {[%clk
00:57:14]} {[%emt 00:03:02]} b4 {[%clk 00:47:23]} {[%emt 00:09:37]} 18. Ne4
{[%clk 00:57:08]} {[%emt 00:00:35]} Ra6 {[%clk 00:46:16]} {[%emt 00:01:38]} 19.
Nd6 {[%clk 00:54:59]} {[%emt 00:02:39]} b5 {[%clk 00:43:00]} {[%emt 00:03:47]}
20. Re4 {[%clk 00:53:26]} {[%emt 00:02:02]} Ra4 {[%clk 00:41:40]} {[%emt
00:01:50]} 21. Rxb4 {[%clk 00:52:14]} {[%emt 00:01:43]} Ba6 {[%clk 00:40:11]}
{[%emt 00:01:59]} 22. Rxa4 {[%clk 00:50:59]} {[%emt 00:01:45]} bxa4 {[%clk
00:40:34]} {[%emt 00:00:08]} 23. Qb4 {[%clk 00:50:28]} {[%emt 00:01:00]} 1-0